Workbook

Sheet 25 Male BR
B1: 25 brass/breastroke
B2: Vīrieši/Male
A4: Vārds | B4: Uzvārds | C4: Dzimums | D4: Grupa | E4: 25m (laiks) | F4: Vieta I | G4: Punkti I | H4: Vieta II | I4: Punkti II | J4: Valsts | K4: Kopvērtējuma punkti | L4: Vieta | M4: Pilsēta | N4: Klubs
A5: Leo | B5: Kopics | C5: M | D5: A1 | E5: 00:00,24,34 | F5: 1 | G5: 30 | H5: 1 | I5: 30 | J5: Latvija | K5: =G5+I5 -> 60 | L5: 1 | M5: Saldus | N5: AKVA VITAMĪNS
A6: Aleksandrs | B6: Mihailenko JR | C6: M | D6: A1 | E6: 00:00,27,09 | F6: 4 | G6: 21 | H6: 2 | I6: 27 | J6: Latvija | K6: 48 | L6: 2 | M6: Rīga | N6: Jelgavas roņi ZPK
A7: Maksims | B7: Šefers | C7: M | D7: A1 | E7: 00:00,29,40 | F7: 3 | G7: 24 | H7: 4 | I7: 21 | J7: Latvija | K7: 45 | L7: 3 | M7: Jelgava | N7: Jelgavas roņi ZPK
A8: Rainers | B8: Litaunieks | C8: M | D8: A1 | F8: 2 | G8: 27 | H8: x | I8: 0 | K8: 27 | L8: 4 | M8: Jelgava | N8: Jelgavas roņi
A9: Alens | B9: Zinovjevs | C9: M | D9: A1 | E9: 00:00,27,12 | F9: x | G9: 0 | H9: 3 | I9: 24 | J9: Latvija | K9: 24 | L9: 5 | M9: Rāmava, Ķekavas novads; | N9: Ķengaraga Roņi
A10: Harijs | B10: Miezītis | C10: M | D10: A1 | E10: 00:00,30,24 | F10: x | G10: 0 | H10: 5 | I10: 18 | J10: Latvija | K10: 18 | L10: 6 | M10: Kuldīga | N10: Kuldīgas roņi
A11: Aleksandrs | B11: Jakovlevs JR | C11: M | D11: A2 | E11: 00:00,17,91 | F11: 1 | G11: 30 | H11: 1 | I11: 30 | J11: Latvija | K11: 60 | L11: 1 | M11: Jelgava | N11: Jelgavas roņi ZPK
A12: Elans | B12: Kleins | C12: M | D12: A2 | F12: 2 | G12: 27 | H12: x | I12: 0 | K12: 27 | L12: 2 | M12: Ventspils | N12: Jūras lauvas
A13: Dmitrijs | B13: Žigunovs | C13: M | D13: B | E13: 00:00,17,03 | F13: x | G13: 0 | H13: 1 | I13: 30 | J13: Latvija | K13: 30 | L13: 1 | M13: Jelgava | N13: Jelgavas roņi ZPK
A14: Artis | B14: Mierklans | C14: M | D14: B | E14: 00:00,22,29 | F14: x | G14: 0 | H14: 2 | I14: 27 | J14: Latvija | K14: 27 | L14: 2 | M14: Liepāja
A15: Mihails | B15: Petrišins | C15: M | D15: C | E15: 00:00,17,73 | F15: 1 | G15: 30 | H15: 2 | I15: 27 | J15: Latvija | K15: 57 | L15: 1 | M15: Jelgava | N15: Jelgavas roņi
A16: Igors | B16: Mihaļevs | C16: M | D16: C | E16: 00:00,18,29 | F16: 2 | G16: 27 | H16: 4 | I16: =I15-3 -> 24 | J16: Latvija | K16: 51 | L16: 2 | M16: Jēkabpils | N16: Jēkabpils Roņi
A17: Oļegs | B17: Jagovdiks | C17: M | D17: C | E17: 00:00,16,93 | F17: x | G17: 0 | H17: 1 | I17: 30 | J17: Latvija | K17: 30 | L17: 3 | M17: Jelgava | N17: Jelgavas roņi
A18: Viesturs | B18: Tamulis | C18: M | D18: C | E18: 00:00,21,48 | F18: 4 | G18: 21 | H18: 9 | I18: =I17-3 -> 27 | J18: Latvija | K18: 48 | L18: 4 | M18: Rīga | N18: Latvijas Ronis
A19: Māris | B19: Balodis | C19: M | D19: C | E19: 00:00,18,26 | F19: x | G19: 0 | H19: 3 | I19: 24 | J19: Latvija | K19: 24 | L19: 5 | M19: Liepāja | N19: Jelgavas roņi
A20: Mārcis | B20: Matīss | C20: M | D20: C | F20: 3 | G20: 24 | H20: x | I20: 0 | K20: 24 | M20: Jelgava | N20: Jelgavas roņi
A21: Igors | B21: Zakrepskis | C21: M | D21: C | E21: 00:00,19,69 | F21: x | G21: 0 | H21: 5 | I21: 18 | J21: Latvija | K21: 18 | L21: 6 | M21: Jelgava | N21: Individuāli
A22: Jevgenijs | B22: Davidkins | C22: M | D22: C | F22: 5 | G22: 18 | H22: x | I22: 0 | K22: 18 | L22: 6 | M22: Jelgava | N22: Jelgavas roņi
A23: Robijs | B23: Karjuss | C23: M | D23: C | E23: 00:00,29,56 | F23: 6 | G23: 15 | H23: 16 | I23: 0 | J23: Latvija | K23: 15 | L23: 7 | M23: Krimulda | N23: Raganas roņi
A24: Uldis | B24: Rimicāns | C24: M | D24: C | E24: 00:00,20,67 | F24: x | G24: 0 | H24: 7 | I24: 12 | J24: Latvija | K24: 12 | L24: 8 | M24: Rīga | N24: Lucavsalas Ledus Lāči
A25: Nauris | B25: Bērziņš | C25: M | D25: C | E25: 00:00,20,96 | F25: x | G25: 0 | H25: 8 | I25: =I24-3 -> 9 | J25: Latvija | K25: 9 | M25: Rīga | N25: Lucavsalas Ledus Lāči
A26: Aleksandrs | B26: Mihailenko | C26: M | D26: C | E26: 00:00,21,63 | F26: x | G26: 0 | H26: 10 | I26: 6 | J26: Latvija | K26: 6 | L26: 9 | M26: Rīga | N26: Jelgavas roņi ZPK
A27: Marcis | B27: Varpa | C27: M | D27: C | E27: 00:00,22,40 | F27: x | G27: 0 | H27: 11 | I27: 0 | J27: Latvija | K27: 0 | L27: 10 | M27: Rīga | N27: Lucavsalas leduslāči
A28: Rihards | B28: Sekste | C28: M | D28: C | E28: 00:00,23,16 | F28: x | G28: 0 | H28: 12 | I28: 0 | J28: Latvija | K28: 0 | L28: 10 | M28: Rīga | N28: Individuāli
A29: Reinis | B29: Tukišs | C29: M | D29: C | E29: 00:00,23,47 | F29: x | G29: 0 | H29: 13 | I29: 0 | J29: Latvija | K29: 0 | L29: 10 | M29: Liepāja | N29: VoleRonis
A30: Renārs | B30: Astra | C30: M | D30: C | E30: 00:00,23,53 | F30: x | G30: 0 | H30: 14 | I30: 0 | J30: Latvija | K30: 0 | L30: 10 | M30: Rīga | N30: Lucavsalas Ledus Lāči
A31: Andris | B31: Leitāns | C31: M | D31: C | E31: 00:00,23,76 | F31: x | G31: 0 | H31: 15 | I31: 0 | J31: Latvija | K31: 0 | L31: 10 | M31: Ozolnieki | N31: Ozolnieku Roņi
A32: Erkki | B32: Kasenurm | C32: M | D32: D | E32: 00:00,21,19 | H32: 3 | J32: Estonia | M32: Tallinn | N32: Adduco
A33: Ivars | B33: Timko | C33: M | D33: D | E33: 00:00,20,11 | F33: x | G33: 0 | H33: 1 | I33: 30 | J33: Jēkabpils roņi | K33: =G33+I33 -> 30 | L33: 1 | M33: Latvija | N33: Jēkabpils
A34: Janis | B34: Buna | C34: M | D34: D | E34: 00:00,20,89 | F34: 1 | G34: 30 | H34: 2 | I34: =I33-3 -> 27 | J34: Latvijas ronis | K34: 57 | L34: 2 | M34: Latvija | N34: Rīga
A35: Pāvels | B35: Piščiks | C35: M | D35: D | F35: 2 | G35: 27 | H35: x | I35: 0 | K35: 27 | L35: 3
A36: Agris | B36: Samcovs | C36: M | D36: D | E36: 00:00,23,39 | F36: x | G36: 0 | H36: 3 | I36: 24 | J36: NRC | K36: 24 | L36: 4 | M36: Latvija | N36: Rīga
A37: Aivars | B37: Litaunieks | C37: M | D37: D | F37: 3 | G37: 24 | H37: x | I37: 0 | K37: 24 | L37: 4
A38: Reno | B38: Lazdiņš | C38: M | D38: D | E38: 00:00,29,16 | F38: x | G38: 0 | H38: 4 | I38: 21 | J38: Ogres Roņi | K38: 21 | L38: 5 | M38: Latvija | N38: Ogre
A39: Artis | B39: Rbens | C39: M | D39: D | E39: 00:00,29,71 | F39: x | G39: 0 | H39: 5 | I39: =I38-3 -> 18 | J39: Jēkabplis roņi | K39: 18 | L39: 6 | M39: Latvija | N39: Jēkabpils
A40: Arturs | B40: Strumpe | C40: M | D40: D | E40: 00:00,32,06 | H40: 6 | I40: 0 | J40: Vācija | M40: Fulda | N40: Individuāli
A41: Artūrs | B41: Aukons | C41: M | D41: E | E41: 00:00,18,67 | F41: 1 | G41: 30 | H41: 1 | I41: 30 | J41: Latvija | K41: =G41+I41 -> 60 | L41: 1 | M41: Rīga | N41: Lucavsalas ledus lāči
A42: Ričards | B42: Batarags | C42: M | D42: E | E42: 00:00,23,20 | F42: 3 | G42: 24 | H42: 2 | I42: 27 | J42: Latvija | K42: 51 | L42: 2 | M42: Saulkrasti | N42: Raganas roņi
A43: Gints | B43: Kopics | C43: M | D43: E | F43: 2 | G43: 27 | H43: x | I43: 0 | K43: 27 | L43: 3 | M43: Saldus | N43: Akvavitamīns
A44: Jurijs | B44: Švedovs | C44: M | D44: E | E44: 00:00,26,06 | F44: x | G44: 0 | H44: 3 | I44: 21 | J44: Latvija | K44: 21 | M44: Ventspils | N44: Jūras lauvas
A45: Jānis | B45: Brazovskis | C45: M | D45: E | E45: 00:00,28,28 | F45: x | G45: 0 | H45: 4 | I45: 18 | J45: Latvija | K45: 18 | L45: 4 | M45: Rīga | N45: Individuāli
A46: Aleksandrs | B46: Jakovlevs | C46: M | D46: F | E46: 00:00,19,59 | F46: 1 | G46: 30 | H46: 1 | I46: 30 | J46: Latvija | K46: 60 | L46: 1 | M46: Jelgava | N46: Jelgavas roņi ZPK
A47: Garijs | B47: Prohorovs | C47: M | D47: F | E47: 00:00,20,12 | F47: x | G47: 0 | H47: 2 | I47: 27 | J47: Latvija | K47: 27 | L47: 2 | M47: Riga | N47: Latvijas roni
A48: Ingus | B48: Veips | C48: M | D48: F | E48: 00:00,21,35 | F48: x | G48: 0 | H48: 3 | I48: 24 | J48: Latvija | K48: 24 | L48: 3 | M48: Rīga | N48: Lucavsalas Ledus Lāči
A49: Guntars | B49: Jēkabsons | C49: M | D49: F | E49: 00:00,24,41 | F49: x | G49: 0 | H49: 4 | I49: 21 | J49: Latvija | K49: 21 | L49: 4 | M49: Liepāja | N49: VeloRonis
A50: Ringolds | B50: Miezitis | C50: M | D50: F | E50: 00:00,24,93 | F50: x | G50: 0 | H50: 5 | I50: 18 | J50: Латвия | K50: 18 | L50: 5 | M50: Kuldīga | N50: Kuldīgas roņi
A51: Roberts | B51: Figoriņš | C51: M | D51: F | E51: 00:00,28,27 | F51: x | G51: 0 | H51: 6 | I51: 15 | J51: Latvija | K51: 15 | L51: 6 | M51: Cīrava | N51: individuāli
A52: Juris | B52: Andžāns | C52: M | D52: G | E52: 00:00,17,64 | F52: 1 | G52: 30 | H52: 1 | I52: 30 | J52: Latvija | K52: 60 | L52: 1 | M52: Aizpute
A53: Valērijs | B53: Vahmjaņins | C53: M | D53: G | F53: 2 | G53: 27 | H53: x | I53: 0 | K53: 27 | L53: 2 | M53: Jelgava | N53: Jelgavas roņi | P53: 00:00,31,16
A54: Andris | B54: Paupers | C54: M | D54: G | E54: 00:00,35,56 | F54: x | G54: 0 | H54: 2 | I54: 27 | J54: Latvija | K54: 27 | L54: 3 | M54: Aizpute | N54: individuāli | P54: 00:00,35,56
A55: Andis | B55: Bukonts | C55: M | D55: H | E55: 00:00,19,81 | F55: 1 | G55: 30 | H55: 1 | I55: 30 | J55: Latvija | K55: 60 | L55: 1 | M55: Valmiera | N55: OZOLNIEKU RONI
A56: Aleksandrs | B56: Besklubenko | C56: M | D56: H | E56: 00:00,22,51 | F56: 2 | G56: 27 | H56: 2 | I56: 27 | J56: Latvija | K56: 54 | L56: 2 | M56: Rīga | N56: Individuāli
A57: Ziedonis | B57: Līnis | C57: M | D57: H | E57: 00:00,28,69 | F57: 5 | G57: 18 | H57: 4 | I57: 21 | J57: Latvija | K57: 39 | M57: Liepāja | N57: Veloronis
A58: Viktors | B58: Bakanovs | C58: M | D58: H | F58: 3 | G58: 24 | H58: x | I58: 0 | K58: 24 | L58: 3 | M58: Carnikava | P58: 00:00,24,36
A59: Anatolijs | B59: Bartkevics | C59: M | D59: H | E59: 00:00,26,93 | F59: x | G59: 0 | H59: 3 | I59: 24 | J59: Latvija | K59: 24 | L59: 4 | M59: Riga | N59: Latvijas ronis | P59: 00:00,26,93
A60: Anatolijs | B60: Bartkevics | C60: M | D60: H | F60: 4 | G60: 21 | H60: x | I60: 0 | K60: 21 | L60: 5 | M60: Rīga | N60: Latvijas ronis
A61: Vitālijs | B61: Kisļicins | C61: M | D61: H | E61: 00:00,28,90 | F61: x | G61: 0 | H61: 5 | I61: 18 | J61: Latvija | K61: 18 | L61: 6 | M61: Rīga | N61: J.R.
A62: Sergejs | B62: Dibrivnijs | C62: M | D62: H | E62: 00:00,29,16 | F62: x | G62: 0 | H62: 6 | I62: 15 | J62: Latvija | K62: 15 | L62: 7 | M62: Riga | N62: individual
A63: Aivars | B63: Prindulis | C63: M | D63: H | F63: 6 | G63: 15 | H63: x | I63: 0 | K63: 15 | L63: 7 | M63: Spuņciems
A64: Ivars | B64: Balevičs | C64: M | D64: H | E64: 00:00,38,38 | F64: x | G64: 0 | H64: 7 | I64: 12 | J64: Latvija | K64: 12 | L64: 8 | M64: Liepāja | N64: Ventspils juras lauvas
A65: Uldis | B65: Ungers | C65: M | D65: H | E65: 00:00,38,41 | F65: x | G65: 0 | H65: 8 | I65: 9 | J65: Latvija | K65: 9 | L65: 9 | M65: Aizpute | N65: Individuāli
A66: Ivans | B66: Bergmanis | C66: M | D66: I | F66: 1 | G66: 30 | H66: x | I66: 0 | K66: 30 | L66: 1 | M66: Jelgava | N66: Jelgavas roņi | P66: 00:00,24,58
A67: Vladimir | B67: Konstantinov | C67: M | D67: I | E67: 00:00,36,37 | F67: x | G67: 0 | H67: 1 | I67: 30 | J67: Latvija | K67: 30 | L67: 2 | P67: 00:00,36,37
A68: Artem | B68: Petrov | C68: M | D68: J | E68: 00:00,39,33 | F68: 1 | G68: 30 | H68: 1 | I68: 30 | J68: Latvija | K68: 60 | L68: 1 | M68: Ventspils | N68: Jūras lauvas
A69: Vasilijs | B69: Kudiķis | C69: M | D69: J1 | E69: 00:00,59,96 | F69: 1 | G69: 30 | H69: 2 | I69: 27 | J69: Latvija | K69: 57 | L69: 1 | M69: Ogre | N69: Ogres Roņi
A70: Dagnijs | B70: Kadziševskis | C70: M | D70: J1 | E70: 00:00,58,76 | F70: x | G70: 0 | H70: 1 | I70: 30 | J70: Latvija | K70: 30 | L70: 2 | M70: Liepāja | N70: VeloRonis
A71: Jurijs | B71: Jakovļevs | C71: M | D71: J2 | F71: 1 | G71: 30 | H71: x | I71: 0 | K71: 30 | L71: 1 | M71: Jelgava | N71: Jelgavas roņi

Sheet 25 Male BR Diploms (hidden)
A1: Vārds | B1: Uzvārds | C1: Dzimums | D1: Grupa | E1: Laiks | F1: Vieta | G1: Valsts | H1: Pilsēta | I1: Klubs | K1: 25m (laiks)
A2: Leo | B2: Kopics | C2: M | D2: A1 | E2: 00:00,24,34 | F2: 1 | G2: Latvija | H2: Saldus | I2: AKVA VITAMĪNS
A3: Aleksandrs | B3: Mihailenko JR | C3: M | D3: A1 | E3: 00:00,27,09 | F3: 2 | G3: Latvija | H3: Rīga | I3: Jelgavas roņi ZPK
A4: Alens | B4: Zinovjevs | C4: M | D4: A1 | E4: 00:00,27,12 | F4: 3 | G4: Latvija | H4: Rāmava, Ķekavas novads; | I4: Ķengaraga Roņi
A5: Aleksandrs | B5: Jakovlevs JR | C5: M | D5: A2 | E5: 00:00,17,91 | F5: 1 | G5: Latvija | H5: Jelgava | I5: Jelgavas roņi ZPK
A6: Dmitrijs | B6: Žigunovs | C6: M | D6: B | E6: 00:00,17,03 | F6: 1 | G6: Latvija | H6: Jelgava | I6: Jelgavas roņi ZPK
A7: Artis | B7: Mierklans | C7: M | D7: B | E7: 00:00,22,29 | F7: 2 | G7: Latvija | H7: Liepāja
A8: Oļegs | B8: Jagovdiks | C8: M | D8: C | E8: 00:00,16,93 | F8: 1 | G8: Latvija | H8: Jelgava | I8: Jelgavas roņi
A9: Mihails | B9: Petrišins | C9: M | D9: C | E9: 00:00,17,73 | F9: 2 | G9: Latvija | H9: Jelgava | I9: Jelgavas roņi
A10: Māris | B10: Balodis | C10: M | D10: C | E10: 00:00,18,26 | F10: 3 | G10: Latvija | H10: Liepāja | I10: Jelgavas roņi
A11: Ivars | B11: Timko | C11: M | D11: D | E11: 00:00,20,11 | F11: 1 | G11: Latvija | H11: Jēkabpils | I11: Jēkabpils roņi
A12: Janis | B12: Buna | C12: M | D12: D | E12: 00:00,20,89 | F12: 2 | G12: Latvija | H12: Rīga | I12: Latvijas ronis
A13: Erkki | B13: Kasenurm | C13: M | D13: D | E13: 00:00,21,19 | F13: 3 | G13: Estonia | H13: Tallinn | I13: Adduco
A14: Artūrs | B14: Aukons | C14: M | D14: E | E14: 00:00,18,67 | F14: 1 | G14: Latvija | H14: Rīga | I14: Lucavsalas ledus lāči
A15: Ričards | B15: Batarags | C15: M | D15: E | E15: 00:00,23,20 | F15: 2 | G15: Latvija | H15: Saulkrasti | I15: Raganas roņi
A16: Jurijs | B16: Švedovs | C16: M | D16: E | E16: 00:00,26,06 | F16: 3 | G16: Latvija | H16: Ventspils | I16: Jūras lauvas
A17: Joerg | B17: Kitlinski | C17: M | D17: E | E17: 00:00,27,16 | F17: 4 | G17: Germany | H17: Fulda | I17: Fuldas only Winterswimmer
A18: Aleksandrs | B18: Jakovlevs | C18: M | D18: F | E18: 00:00,19,59 | F18: 1 | G18: Latvija | H18: Jelgava | I18: Jelgavas roņi ZPK
A19: Garijs | B19: Prohorovs | C19: M | D19: F | E19: 00:00,20,12 | F19: 2 | G19: Latvija | H19: Riga | I19: Latvijas roni
A20: Ingus | B20: Veips | C20: M | D20: F | E20: 00:00,21,35 | F20: 3 | G20: Latvija | H20: Rīga | I20: Lucavsalas Ledus Lāči
A21: Juris | B21: Andžāns | C21: M | D21: G | E21: 00:00,17,64 | F21: 1 | G21: Latvija | H21: Aizpute
A22: Andris | B22: Paupers | C22: M | D22: G | E22: 00:00,35,56 | F22: 2 | G22: Latvija | H22: Aizpute | I22: individuāli
A23: Andis | B23: Bukonts | C23: M | D23: H | E23: 00:00,19,81 | F23: 1 | G23: Latvija | H23: Valmiera | I23: OZOLNIEKU RONI
A24: Aleksandrs | B24: Besklubenko | C24: M | D24: H | E24: 00:00,22,51 | F24: 2 | G24: Latvija | H24: Rīga | I24: Individuāli
A25: Igor | B25: Pilshchikov | C25: M | D25: H | E25: 00:00,23,56 | F25: 3 | G25: Belarus | H25: Minsk | I25: Morjy Stolicy
A26: Vladimir | B26: Konstantinov | C26: M | D26: I | E26: 00:00,36,37 | F26: 1 | G26: Latvija
A27: Artem | B27: Petrov | C27: M | D27: J | E27: 00:00,39,33 | F27: 1 | G27: Latvija | H27: Ventspils | I27: Jūras lauvas
A28: Dagnijs | B28: Kadziševskis | C28: M | D28: J1 | E28: 00:00,58,76 | F28: 1 | G28: Latvija | H28: Liepāja | I28: VeloRonis
A29: Vasilijs | B29: Kudiķis | C29: M | D29: J1 | E29: 00:00,59,96 | F29: 2 | G29: Latvija | H29: Ogre | I29: Ogres Roņi

Sheet 25 Male BFLY
B1: 25 tauriņstils/butterfly | E1: 25m buterfly
B2: Vīrieši/Male
A4: Vārds | B4: Uzvārds | C4: Dzimums | D4: Grupa | E4: Laiks | F4: Vieta I | G4: Punkti I | H4: Vieta II | I4: Punkti II | J4: Valsts | K4: Kopvērtējuma punkti | L4: Vieta | M4: Pilsēta | N4: Valsts
A5: Bruno | B5: Vītoliņš | C5: M | D5: A2 | E5: 00:00,13,67 | F5: 1 | G5: 30 | H5: 1 | I5: 30 | J5: Latvija | K5: =G5+I5 -> 60 | L5: 1 | M5: Saldus | N5: AKVA VITAMĪNS
A6: Aleksandrs | B6: Jakovlevs JR | C6: M | D6: A2 | E6: 00:00,15,97 | F6: 2 | G6: 27 | H6: 2 | I6: 27 | J6: Latvija | K6: 54 | L6: 2 | M6: Jelgava | N6: Jelgavas roņi ZPK
A7: Nikita | B7: Nustajevs | C7: M | D7: A2 | E7: 00:00,16,06 | F7: x | G7: 0 | H7: 3 | I7: 24 | J7: Latvija | K7: 24 | L7: 3 | M7: Liepāja | N7: Liepāja KSS-Ezerkrasts
A8: Dmitrijs | B8: Žigunovs | C8: M | D8: B | E8: 00:00,12,34 | F8: x | G8: 0 | H8: 1 | I8: 30 | J8: Latvija | K8: 30 | L8: 1 | M8: Jelgava | N8: Jelgavas roņi ZPK
A9: Mihails | B9: Petrišins | C9: M | D9: C | E9: 00:00,15,09 | F9: 1 | G9: 30 | H9: 2 | I9: 27 | J9: Latvija | K9: 57 | L9: 1 | M9: Jelgava | N9: Jelgavas roņi
A10: Pāvels | B10: Šišlovs | C10: M | D10: C | E10: 00:00,13,36 | F10: x | G10: 0 | H10: 1 | I10: 30 | J10: Latvija | K10: 30 | L10: 2 | M10: Rīga | N10: Swim4Style
A11: Igors | B11: Mihaļevs | C11: M | D11: C | F11: 2 | G11: 27 | H11: x | I11: 0 | K11: 27 | L11: 3 | M11: Jēkabpils
A12: Jevgenijs | B12: Zinovjevs | C12: M | D12: C | E12: 00:00,20,90 | F12: x | G12: 0 | H12: 3 | I12: 24 | J12: Latvija | K12: 24 | L12: 4 | M12: Rāmava, Ķekavas novads; | N12: Ķengaraga Roņi
A13: Anton | B13: Bazõlev | C13: M | D13: C | E13: 00:00,21,60 | H13: 4 | J13: Estonia | M13: Tallinn | N13: Adduco moving service
A14: Janis | B14: Buna | C14: M | D14: D | E14: 00:00,18,03 | F14: 1 | G14: 30 | H14: 2 | I14: 27 | J14: Latvija | K14: =G14+I14 -> 57 | L14: 1 | M14: Rīga | N14: Latvijas ronis
A15: Janis | B15: Viņodis | C15: M | D15: D | E15: 00:00,16,78 | F15: x | G15: 0 | H15: 1 | I15: 30 | J15: Latvija | K15: 30 | L15: 2 | M15: Liepāja | N15: Jelgavas roņi
A16: Erkki | B16: Kasenurm | C16: M | D16: D | E16: 00:00,18,64 | H16: 3 | J16: Estonia | M16: Tallinn | N16: Adduco
A17: Jurijs | B17: Švedovs | C17: M | D17: E | E17: 00:00,23,16 | F17: x | G17: 0 | H17: 1 | I17: 30 | J17: Latvija | K17: =G17+I17 -> 30 | L17: 1 | M17: Ventspils | N17: Jūras lauvas
A18: Artūrs | B18: Aukons | C18: M | D18: E | E18: 00:00,23,25 | F18: x | G18: 0 | H18: 2 | I18: 27 | J18: Latvija | K18: 27 | L18: 2 | M18: Rīga | N18: LUCAVSALAS LEDUS LĀČI
A19: Garijs | B19: Prohorovs | C19: M | D19: F | E19: 00:00,19,39 | F19: 1 | G19: 30 | H19: 1 | I19: 30 | J19: Latvija | K19: 60 | L19: 1 | M19: Riga | N19: Latvijas roni
A20: Aleksandrs | B20: Jakovlevs | C20: M | D20: F | E20: 00:00,22,64 | F20: 2 | G20: 27 | H20: 2 | I20: 27 | J20: Latvija | K20: 54 | L20: 2 | M20: Jelgava | N20: Jelgavas roņi ZPK
A21: Juris | B21: Andžāns | C21: M | D21: G | E21: 00:00,19,02 | F21: 1 | G21: 30 | H21: 2 | I21: 27 | J21: Latvija | K21: 57 | L21: 1 | M21: Aizpute
A22: Raitis | B22: Gultnieks | C22: M | D22: G | E22: 00:00,18,09 | F22: x | G22: 0 | H22: 1 | I22: 30 | J22: Latvija | K22: 30 | L22: 2 | M22: Silakrogs | N22: Ogres roņi
A23: Andis | B23: Bukonts | C23: M | D23: H | E23: 00:00,17,70 | F23: 1 | G23: 30 | H23: 1 | I23: 30 | J23: Latvija | K23: 60 | L23: 1 | M23: Valmiera | N23: OZOLNIEKU ROŅI
A24: Igor | B24: Pilshchikov | C24: M | D24: H | E24: 00:00,20,36 | H24: 2 | J24: Belarus | M24: Minsk | N24: Morjy Stolicy
A25: Viktors | B25: Bakanovs | C25: M | D25: H | E25: 00:00,22,50 | F25: 2 | G25: 27 | H25: 3 | I25: 24 | J25: Latvija | K25: =G25+I25 -> 51 | L25: 2 | M25: Carnikava | N25: Jelgavas Roņi
A26: Raits | B26: Valters | C26: M | D26: H | E26: 00:00,21,61 | F26: x | G26: 0 | H26: 2 | I26: 27 | J26: Latvija | K26: 27 | L26: 3 | M26: Kuldīga | N26: Kuldīgas roņi
A27: Ivans | B27: Bergmanis | C27: M | D27: I | F27: 1 | G27: 30 | H27: x | I27: 0 | K27: 30 | L27: 1 | M27: Jelgava

Sheet 25 Male BFLY Diplomi (hidden)
B1: 25 tauriņstils/butterfly | E1: 25m buterfly
B2: Vīrieši/Male
A4: Vārds | B4: Uzvārds | C4: Dzimums | D4: Grupa | E4: Laiks | F4: Vieta | G4: Valsts | H4: Pilsēta | I4: Valsts
A5: Bruno | B5: Vītoliņš | C5: M | D5: A2 | E5: 00:00,13,67 | F5: 1 | G5: Latvija | H5: Saldus | I5: AKVA VITAMĪNS
A6: Aleksandrs | B6: Jakovlevs JR | C6: M | D6: A2 | E6: 00:00,15,97 | F6: 2 | G6: Latvija | H6: Jelgava | I6: Jelgavas roņi ZPK
A7: Nikita | B7: Nustajevs | C7: M | D7: A2 | E7: 00:00,16,06 | F7: 3 | G7: Latvija | H7: Liepāja | I7: Liepāja KSS-Ezerkrasts
A8: Dmitrijs | B8: Žigunovs | C8: M | D8: B | E8: 00:00,12,34 | F8: 1 | G8: Latvija | H8: Jelgava | I8: Jelgavas roņi ZPK
A9: Pāvels | B9: Šišlovs | C9: M | D9: C | E9: 00:00,13,36 | F9: 1 | G9: Latvija | H9: Rīga | I9: Swim4Style
A10: Mihails | B10: Petrišins | C10: M | D10: C | E10: 00:00,15,09 | F10: 2 | G10: Latvija | H10: Jelgava | I10: Jelgavas roņi
A11: Jevgenijs | B11: Zinovjevs | C11: M | D11: C | E11: 00:00,20,90 | F11: 3 | G11: Latvija | H11: Rāmava, Ķekavas novads; | I11: Ķengaraga Roņi
A12: Janis | B12: Viņodis | C12: M | D12: D | E12: 00:00,16,78 | F12: 1 | G12: Latvija | H12: Liepāja | I12: Jelgavas roņi
A13: Janis | B13: Buna | C13: M | D13: D | E13: 00:00,18,03 | F13: 2 | G13: Latvija | H13: Rīga | I13: Latvijas ronis
A14: Erkki | B14: Kasenurm | C14: M | D14: D | E14: 00:00,18,64 | F14: 3 | G14: Estonia | H14: Tallinn | I14: Adduco
A15: Jurijs | B15: Švedovs | C15: M | D15: E | E15: 00:00,23,16 | F15: 1 | G15: Latvija | H15: Ventspils | I15: Jūras lauvas
A16: Artūrs | B16: Aukons | C16: M | D16: E | E16: 00:00,23,25 | F16: 2 | G16: Latvija | H16: Rīga | I16: LUCAVSALAS LEDUS LĀČI
A17: Garijs | B17: Prohorovs | C17: M | D17: F | E17: 00:00,19,39 | F17: 1 | G17: Latvija | H17: Riga | I17: Latvijas roni
A18: Aleksandrs | B18: Jakovlevs | C18: M | D18: F | E18: 00:00,22,64 | F18: 2 | G18: Latvija | H18: Jelgava | I18: Jelgavas roņi ZPK
A19: Raitis | B19: Gultnieks | C19: M | D19: G | E19: 00:00,18,09 | F19: 1 | G19: Latvija | H19: Silakrogs | I19: Ogres roņi
A20: Juris | B20: Andžāns | C20: M | D20: G | E20: 00:00,19,02 | F20: 2 | G20: Latvija | H20: Aizpute
A21: Andis | B21: Bukonts | C21: M | D21: H | E21: 00:00,17,70 | F21: 1 | G21: Latvija | H21: Valmiera | I21: OZOLNIEKU ROŅI
A22: Igor | B22: Pilshchikov | C22: M | D22: H | E22: 00:00,20,36 | F22: 2 | G22: Belarus | H22: Minsk | I22: Morjy Stolicy
A23: Raits | B23: Valters | C23: M | D23: H | E23: 00:00,21,61 | F23: 3 | G23: Latvija | H23: Kuldīga | I23: Kuldīgas roņi

Sheet 50 Male
D1: 50 brīvais st./freestyle | H1: 50m brīvais
D2: Vīrieši/Male
A4: Vārds | B4: Uzvārds | C4: Dzimums | D4: Grupa | E4: Laiks | F4: Vieta I | G4: Punkti I | H4: Vieta II | I4: Punkti II | J4: Valsts | K4: Kopvērtējuma punkti | L4: Vieta | M4: Pilsēta | N4: Klubs
A5: Aleksandrs | B5: Mihailenko JR | C5: M | D5: A1 | E5: 00:00,46,80 | F5: x | G5: 0 | H5: 1 | I5: 30 | J5: Latvija | K5: =G5+I5 -> 30 | L5: 1 | M5: Rīga | N5: Jelgavas roņi ZPK
A6: Aleksandrs | B6: Jakovlevs JR | C6: M | D6: A2 | E6: 00:00;30,93 | F6: 1 | G6: 30 | H6: 1 | I6: 30 | J6: Latvija | K6: 60 | L6: 1 | M6: Jelgava | N6: Jelgavas roņi ZPK
A7: Daniels | B7: Zanders | C7: M | D7: A2 | F7: 2 | G7: 27 | H7: x | I7: 0 | K7: 27 | L7: 2 | M7: Rīga | N7: Lucavsalas leduslāči
A8: Maksims | B8: Korotkovs | C8: M | D8: A2 | F8: 3 | G8: 24 | H8: x | I8: 0 | K8: 24 | L8: 3 | M8: Jelgava | N8: Jelgavas roņi ZPK
A9: Dmitrijs | B9: Žigunovs | C9: M | D9: B | E9: 00:00,31,35 | F9: x | G9: 0 | H9: 1 | I9: 30 | J9: Latvija | K9: 30 | L9: 1 | M9: Jelgava | N9: Jelgavas roņi ZPK
A10: Artis | B10: Mierklans | C10: M | D10: B | E10: 00:00,35,80 | F10: x | G10: 0 | H10: 2 | I10: 27 | J10: Latvija | K10: 27 | L10: 2 | M10: Liepāja
A11: Kristaps | B11: Bumbulis | C11: M | D11: B | E11: 00:00,42,03 | F11: x | G11: 0 | H11: 3 | I11: 24 | J11: Latvija | K11: 24 | L11: 3 | M11: Kapsēde | N11: Individuāli
A12: Kaspars | B12: Vallis | C12: M | D12: B | E12: 00:00,54,75 | F12: x | G12: 0 | H12: 4 | I12: 21 | J12: Latvija | K12: 21 | L12: 4 | M12: Liepāja
A13: Pāvels | B13: Baukovskis | C13: M | D13: B | E13: 00:00,55,65 | F13: x | G13: 0 | H13: 5 | I13: 18 | J13: Latvija | K13: 18 | L13: 5 | M13: Ventspils | N13: Venspils Jūras Lauvas
A14: Mihails | B14: Petrišins | C14: M | D14: C | E14: 00:00,30,15 | F14: 1 | G14: 30 | H14: 2 | I14: 27 | J14: Latvija | K14: 57 | L14: 1 | M14: Jelgava | N14: Jelgavas roņi
A15: Māris | B15: Prindulis | C15: M | D15: C | E15: 00:00,33,01 | F15: 2 | G15: 27 | H15: 4 | I15: =I14-3 -> 24 | J15: Latvija | K15: 51 | L15: 2 | M15: Rīga | N15: Lucavsalas Ledus Lāči
A16: Gundars | B16: Lapše | C16: M | D16: C | E16: 00:00,28,16 | F16: x | G16: 0 | H16: 1 | I16: 30 | J16: Latvija | K16: 30 | L16: 3 | M16: Rīga | N16: Swim4Style
A17: Igors | B17: Mihaļevs | C17: M | D17: C | E17: 00:00,32,48 | F17: x | G17: 0 | H17: 3 | I17: 24 | J17: Latvija | K17: 24 | L17: 4 | M17: Jēkabpils | N17: Jēkabpils Roņi
A18: Anton | B18: Bazõlev | C18: M | D18: C | E18: 00:00,38,22 | F18: 7 | H18: Estonia | I18: Tallinn | J18: Adduco moving service
A19: Jevgenijs | B19: Davidkins | C19: M | D19: C | F19: 3 | G19: 24 | H19: x | I19: 0 | K19: =G19+I19 -> 24 | L19: 4 | M19: Jelgava | N19: Jelgavas roņi
A20: Nauris | B20: Bērziņš | C20: M | D20: C | E20: 00:00,33,84 | F20: x | G20: 0 | H20: 5 | I20: 21 | J20: Latvija | K20: 21 | L20: 5 | M20: Rīga | N20: Lucavsalas Ledus Lāči
A21: Ievgen | B21: Fieiiereizen | C21: M | D21: C | E21: 00:00,40,39 | F21: 10 | H21: Ukrainā | I21: Liepāja | J21: Individuāli
A22: Uldis | B22: Rimicāns | C22: M | D22: C | E22: 00:00,36,13 | F22: x | G22: 0 | H22: 6 | I22: 18 | J22: Latvija | K22: 18 | L22: 6 | M22: Rīga | N22: Lucavsalas Ledus Lāči
A23: Uģis | B23: Eida | C23: M | D23: C | E23: 00:00,40,09 | F23: x | G23: 0 | H23: 7 | I23: 12 | J23: Latvija | K23: =G23+I23 -> 12 | L23: 7 | M23: Jūrmala
A24: Sergejs | B24: Juhno | C24: M | D24: C | E24: 00:00,40,34 | F24: x | G24: 0 | H24: 8 | I24: 9 | J24: Latvija | K24: 9 | L24: 8 | M24: Liepāja | N24: Born2Win
A25: Jevgenijs | B25: Zinovjevs | C25: M | D25: C | E25: 00:00,40,50 | F25: x | G25: 0 | H25: 9 | I25: 6 | J25: Latvija | K25: 6 | L25: 7 | M25: Rāmava, Ķekavas novads; | N25: Latvijas Ronis (Ķengaraga Roņi)
A26: Dāvids | B26: Senebiņš | C26: M | D26: C | E26: 00:00,41,50 | F26: x | G26: 0 | H26: 10 | I26: =I25-3 -> 3 | J26: Latvija | K26: 3 | L26: 6 | M26: Kapsēde | N26: Individuāli
A27: Renārs | B27: Astra | C27: M | D27: C | E27: 00:00,42,20 | F27: x | G27: 0 | H27: 11 | I27: 0 | J27: Latvija | K27: 0 | M27: Rīga | N27: Lucavsalas Ledus Lāči
A28: Aleksandrs | B28: Mihailenko | C28: M | D28: C | E28: 00:00,42,76 | F28: x | G28: 0 | H28: 12 | I28: 0 | J28: Latvija | K28: 0 | M28: Rīga | N28: Jelgavas roņi ZPK
A29: Rihards | B29: Sekste | C29: M | D29: C | E29: 00:00,44,24 | F29: x | G29: 0 | H29: 13 | I29: 0 | J29: Latvija | K29: 0 | M29: Rīga
A30: Andris | B30: Leitāns | C30: M | D30: C | E30: 00:00,45,40 | F30: x | G30: 0 | H30: 14 | I30: 0 | J30: Latvija | K30: 0 | M30: Ozolnieki | N30: Ozolnieku Roņi
A31: Erkki | B31: Kasenurm | C31: M | D31: D | E31: 00:00,35,17 | F31: 3 | H31: Estonia | I31: Tallinn | J31: Adduco
A32: Edgars | B32: Buļs | C32: M | D32: C | E32: 00:00,45,99 | F32: x | G32: 0 | H32: 15 | I32: 0 | J32: Latvija | K32: =G32+I32 -> 0 | M32: Pilsēta | N32: Lucavsalas Ledus Lāči
A33: Ivars | B33: Timko | C33: M | D33: D | E33: 00:00,34,19 | F33: 1 | G33: 30 | H33: 1 | I33: 30 | J33: Latvija | K33: 60 | L33: 1 | M33: Jēkabpils | N33: Jēkabpils roņi
A34: Janis | B34: Buna | C34: M | D34: D | E34: 00:00,34,63 | F34: 2 | G34: 27 | H34: 2 | I34: 27 | J34: Latvija | K34: 54 | L34: 2 | M34: Rīga | N34: Latvijas ronis
A35: Reno | B35: Lazdiņš | C35: M | D35: D | E35: 00:00,48,19 | F35: x | G35: 0 | H35: 3 | I35: 24 | J35: Latvija | K35: 24 | L35: 3 | M35: Ogre | N35: Ogres Roņi
A36: Artūrs | B36: Aukons | C36: M | D36: E | E36: 00:00,38,12 | F36: 1 | G36: 30 | H36: 1 | I36: 30 | J36: Latvija | K36: 60 | L36: 1 | M36: Rīga | N36: LUCAVSALAS LEDUS LĀČI / LUTZAUSHOLM POLAR BEARS
A37: Gints | B37: Kopics | C37: M | D37: E | E37: 00:00,39,03 | F37: x | G37: 0 | H37: 2 | I37: 27 | J37: Latvija | K37: 27 | L37: 2 | M37: Saldus | N37: AKVA VITAMĪNS | P37: 00:00,39,03
A38: Joerg | B38: Kitlinski | C38: M | D38: E | E38: 00:01,07,51 | F38: 6 | H38: Germany | I38: Fulda | J38: Fuldas only Winterswimmer
A39: Didzis | B39: Gasiņš | C39: M | D39: E | F39: 2 | G39: 27 | H39: x | I39: 0 | K39: =G39+I39 -> 27 | L39: 3 | M39: Salaspils | N39: Salaspils Zīriņi | P39: 00:00,50,75
A40: Artis | B40: Šmits | C40: M | D40: E | E40: 00:00,40,42 | F40: x | G40: 0 | H40: 3 | I40: 24 | J40: Latvija | K40: 24 | L40: 4 | M40: Rīga | N40: Lucavsalas Ledus Lāči
A41: Jurijs | B41: Švedovs | C41: M | D41: E | E41: 00:00,43,34 | F41: x | G41: 0 | H41: 4 | I41: 21 | J41: Latvija | K41: 21 | L41: 5 | M41: Ventspils | N41: Jūras lauvas
A42: Juris | B42: Marahovskis | C42: M | D42: E | E42: 00:00,47,17 | F42: x | G42: 0 | H42: 5 | I42: 18 | J42: Latvija | K42: 18 | L42: 6 | M42: Rīga | N42: Individuāli
A43: Garijs | B43: Prohorovs | C43: M | D43: F | E43: 00:00,40,54 | F43: 2 | G43: 27 | H43: 1 | I43: 30 | J43: Latvija | K43: 57 | L43: 1 | M43: Riga | N43: Latvijas roni
A44: Aleksandrs | B44: Jakovļevs | C44: M | D44: F | F44: 1 | G44: 30 | H44: x | I44: 0 | K44: 30 | L44: 2 | M44: Jelgava | N44: Jelgavas roņi
A45: Ingus | B45: Veips | C45: M | D45: F | E45: 00:00,41,25 | F45: x | G45: 0 | H45: 2 | I45: 27 | J45: Latvija | K45: 27 | L45: 3 | M45: Rīga | N45: Lucavsalas Ledus Lāči
A46: Guntars | B46: Jēkabsons | C46: M | D46: F | E46: 00:00,43,86 | F46: x | G46: 0 | H46: 3 | I46: 24 | J46: Latvija | K46: 24 | L46: 4 | M46: Liepāja | N46: Veloronis
A47: Roberts | B47: Figoriņš | C47: M | D47: F | E47: 00:00,49,70 | F47: x | G47: 0 | H47: 4 | I47: 21 | J47: Latvija | K47: 21 | L47: 5 | M47: Cīrava | N47: Individuāli
A48: Igor | B48: Pilshchikov | C48: M | D48: H | E48: 00:00,38,58 | F48: 3 | H48: Belarus | I48: Minsk | J48: Morjy Stolicy
A49: Artis | B49: Konopackis | C49: M | D49: F | E49: 00:00:50,51 | F49: x | G49: 0 | H49: 5 | I49: 18 | J49: Latvija | K49: =G49+I49 -> 18 | L49: 6 | M49: Liepāja
A50: Juris | B50: Andžāns | C50: M | D50: G | E50: 00:00,37,00 | F50: 1 | G50: 30 | H50: 1 | I50: 30 | J50: Latvija | K50: 60 | L50: 1 | M50: Aizpute
A51: Jānis | B51: Kirilko | C51: M | D51: G | F51: 2 | G51: 27 | H51: x | I51: 0 | K51: 27 | L51: 2 | P51: 00:00,45,70
A52: Kārlis | B52: Grundmanis | C52: M | D52: G | E52: 00:01,04,15 | F52: x | G52: 0 | H52: 2 | I52: 27 | J52: Latvija | K52: 27 | L52: 3 | M52: Kuldīga | N52: Kuldīgas roņi | P52: 00:01,04,15
A53: Andis | B53: Bukonts | C53: M | D53: H | E53: 00:00,33,71 | F53: 1 | G53: 30 | H53: 1 | I53: 30 | J53: Latvija | K53: 60 | L53: 1 | M53: Valmiera | N53: OZOLNIEKU RONII
A54: Raits | B54: Valters | C54: M | D54: H | E54: 00:00,36,13 | F54: 2 | G54: 27 | H54: 2 | I54: 27 | J54: Latvija | K54: 54 | L54: 2 | M54: Kuldīga | N54: Kuldīgas roņi
A55: Anatolijs | B55: Bartkevics | C55: M | D55: H | E55: 00:00,44,37 | F55: 3 | G55: 24 | H55: 3 | I55: 24 | J55: Latvija | K55: 48 | L55: 3 | M55: Riga | N55: Latvijsronis
A56: Aivars | B56: Bumbulis | C56: M | D56: H | E56: 00:00,45,88 | F56: x | G56: 0 | H56: 4 | I56: 21 | J56: Latvija | K56: 21 | L56: 4 | M56: Grobiņa | N56: Individuāli
A57: Aleksandrs | B57: Besklubenko | C57: M | D57: H | E57: 00:00,48,22 | F57: x | G57: 0 | H57: 5 | I57: 18 | J57: Latvija | K57: 18 | L57: 5 | M57: Rīga | N57: Individuāli
A58: Ivans | B58: Bergmanis | C58: M | D58: I | F58: 1 | G58: 30 | H58: x | I58: 0 | K58: 30 | L58: 1 | M58: Jelgava | P58: 00:00,35,82
A59: Vladimir | B59: Konstantinov | C59: M | D59: I | E59: 00:01,04,48 | F59: x | G59: 0 | H59: 1 | I59: 30 | J59: Latvija | K59: 30 | L59: 2 | P59: 00:01,04,48
A60: Artem | B60: Petrov | C60: M | D60: J | E60: 00:01,10,66 | F60: 2 | G60: 27 | H60: 1 | I60: 30 | J60: Latvija | K60: 57 | L60: 1 | M60: Ventspils | N60: Jūras lauvas
A61: Arnis | B61: Ozols | C61: M | D61: J | F61: 1 | G61: 30 | H61: x | I61: 0 | K61: 30 | L61: 2 | M61: Ventspils | N61: Jūras lauvas
A62: Viktors | B62: Valainis | C62: M | D62: J1 | E62: 00:00,48,66 | F62: 1 | G62: 30 | H62: 1 | I62: 30 | J62: Latvija | K62: 60 | L62: 1 | M62: Jelgava | N62: Jelgavas roņi ZPK
A63: Vasilijs | B63: Kudiķis | C63: M | D63: J1 | E63: 00:02,08,03 | F63: x | G63: 0 | H63: 2 | I63: 27 | J63: Latvija | K63: 27 | L63: 2 | M63: Ogre | N63: Ogres Roņi

Sheet 50 Male Diploms (hidden)
D1: 50 brīvais st./freestyle | F1: 50m brīvais
D2: Vīrieši/Male
A4: Vārds | B4: Uzvārds | C4: Dzimums | D4: Grupa | E4: Laiks | F4: Vieta | G4: Valsts | H4: Pilsēta | I4: Klubs
A5: Aleksandrs | B5: Mihailenko JR | C5: M | D5: A1 | E5: 00:00,46,80 | F5: 1 | G5: Latvija | H5: Rīga | I5: Jelgavas roņi ZPK
A6: Aleksandrs | B6: Jakovlevs JR | C6: M | D6: A2 | E6: 00:00;30,93 | F6: 1 | G6: Latvija | H6: Jelgava | I6: Jelgavas roņi ZPK
A7: Dmitrijs | B7: Žigunovs | C7: M | D7: B | E7: 00:00,31,35 | F7: 1 | G7: Latvija | H7: Jelgava | I7: Jelgavas roņi ZPK
A8: Artis | B8: Mierklans | C8: M | D8: B | E8: 00:00,35,80 | F8: 2 | G8: Latvija | H8: Liepāja
A9: Kristaps | B9: Bumbulis | C9: M | D9: B | E9: 00:00,42,03 | F9: 3 | G9: Latvija | H9: Kapsēde | I9: Individuāli
A10: Gundars | B10: Lapše | C10: M | D10: C | E10: 00:00,28,16 | F10: 1 | G10: Latvija | H10: Rīga | I10: Swim4Style
A11: Mihails | B11: Petrišins | C11: M | D11: C | E11: 00:00,30,15 | F11: 2 | G11: Latvija | H11: Jelgava | I11: Jelgavas roņi
A12: Igors | B12: Mihaļevs | C12: M | D12: C | E12: 00:00,32,48 | F12: 3 | G12: Latvija | H12: Jēkabpils | I12: Jēkabpils Roņi
A13: Ivars | B13: Timko | C13: M | D13: D | E13: 00:00,34,19 | F13: 1 | G13: Latvija | H13: Jēkabpils | I13: Jēkabpils roņi
A14: Janis | B14: Buna | C14: M | D14: D | E14: 00:00,34,63 | F14: 2 | G14: Latvija | H14: Rīga | I14: Latvijas ronis
A15: Erkki | B15: Kasenurm | C15: M | D15: D | E15: 00:00,35,17 | F15: 3 | G15: Estonia | H15: Tallinn | I15: Adduco
A16: Artūrs | B16: Aukons | C16: M | D16: E | E16: 00:00,38,12 | F16: 1 | G16: Latvija | H16: Rīga | I16: LUCAVSALAS LEDUS LĀČI / LUTZAUSHOLM POLAR BEARS
A17: Gints | B17: Kopics | C17: M | D17: E | E17: 00:00,39,03 | F17: 2 | G17: Latvija | H17: Saldus | I17: AKVA VITAMĪNS
A18: Artis | B18: Šmits | C18: M | D18: E | E18: 00:00,40,42 | F18: 3 | G18: Latvija | H18: Rīga | I18: Lucavsalas Ledus Lāči
A19: Garijs | B19: Prohorovs | C19: M | D19: F | E19: 00:00,40,54 | F19: 1 | G19: Latvija | H19: Riga | I19: Latvijas roni
A20: Ingus | B20: Veips | C20: M | D20: F | E20: 00:00,41,25 | F20: 2 | G20: Latvija | H20: Rīga | I20: Lucavsalas Ledus Lāči
A21: Guntars | B21: Jēkabsons | C21: M | D21: F | E21: 00:00,43,86 | F21: 3 | G21: Latvija | H21: Liepāja | I21: Veloronis
A22: Juris | B22: Andžāns | C22: M | D22: G | E22: 00:00,37,00 | F22: 1 | G22: Latvija | H22: Aizpute
A23: Kārlis | B23: Grundmanis | C23: M | D23: G | E23: 00:01,04,15 | F23: 2 | G23: Latvija | H23: Kuldīga | I23: Kuldīgas roņi
A24: Andis | B24: Bukonts | C24: M | D24: H | E24: 00:00,33,71 | F24: 1 | G24: Latvija | H24: Valmiera | I24: OZOLNIEKU RONII
A25: Raits | B25: Valters | C25: M | D25: H | E25: 00:00,36,13 | F25: 2 | G25: Latvija | H25: Kuldīga | I25: Kuldīgas roņi
A26: Igor | B26: Pilshchikov | C26: M | D26: H | E26: 00:00,38,58 | F26: 3 | G26: Belarus | H26: Minsk | I26: Morjy Stolicy
A27: Vladimir | B27: Konstantinov | C27: M | D27: I | E27: 00:01,04,48 | F27: 1 | G27: Latvija
A28: Artem | B28: Petrov | C28: M | D28: J | E28: 00:01,10,66 | F28: 1 | G28: Latvija | H28: Ventspils | I28: Jūras lauvas
A29: Viktors | B29: Valainis | C29: M | D29: J1 | E29: 00:00,48,66 | F29: 1 | G29: Latvija | H29: Jelgava | I29: Jelgavas roņi ZPK
A30: Vasilijs | B30: Kudiķis | C30: M | D30: J1 | E30: 00:02,08,03 | F30: 2 | G30: Latvija | H30: Ogre | I30: Ogres Roņi

Sheet 100 Male
A1: 100 brass/breastroke | E1: 100m brass
A2: Vīrieši/Male
A4: Vārds | B4: Uzvārds | C4: Dzimums | D4: Grupa | E4: Laiks | F4: Vieta I | G4: Punkti I | H4: Vieta II | I4: Punkti II | J4: Valsts | K4: Kopvērtējuma punkti | L4: Vieta | M4: Pilsēta | N4: Klubs
A5: Aleksandrs | B5: Jakovlevs JR | C5: M | D5: A2 | E5: 00:01,34,47 | F5: 1 | G5: 30 | H5: 1 | I5: 30 | J5: Latvija | K5: =G5+I5 -> 60 | L5: 1 | M5: Jelgava | N5: Jelgavas roņi ZPK
A6: Dmitrijs | B6: Žigunovs | C6: M | D6: B | E6: 00:01,45,54 | F6: x | G6: 0 | H6: 1 | I6: 30 | J6: Latvija | K6: 30 | L6: 1 | M6: Jelgava | N6: Jelgavas roņi ZPK
A7: Mihails | B7: Petrišins | C7: M | D7: C | E7: 00:01,32,10 | F7: x | G7: 0 | H7: 1 | I7: 30 | J7: Latvija | K7: 30 | L7: 1 | M7: Jelgava | N7: Jelgavas roņi | P7: 00:01,32,10
A8: Anton | B8: Bazõlev | C8: M | D8: C | E8: 00:01,42,56 | H8: 2 | J8: Estonia | M8: Tallinn | N8: Adduco moving service
A9: Oleg | B9: Arbuzov | C9: M | D9: C | E9: 00:01,53,02 | H9: 3 | J9: Russia | M9: Moscow | N9: Moroz&Co
A10: Jānis | B10: Buna | C10: M | D10: C | F10: 1 | G10: 30 | H10: x | I10: 0 | K10: =G10+I10 -> 30 | L10: 2 | M10: Rīga | N10: Latvijas ronis | P10: 00:01,42,55
A11: Mārcis | B11: Vārpa | C11: M | D11: C | E11: 00:01,55,65 | F11: x | G11: 0 | H11: 2 | I11: 27 | J11: Latvija | K11: 27 | L11: 3 | M11: Rīga | N11: Lucavsalas Ledus Lāči
A12: Viesturs | B12: Tamulis | C12: M | D12: C | E12: 00:02,02,84 | F12: x | G12: 0 | H12: 3 | I12: 24 | J12: Latvija | K12: 24 | L12: 4 | M12: Rīga | N12: Latvijas Ronis
A13: Uldis | B13: Rimicāns | C13: M | D13: C | E13: 00:02,02,88 | F13: x | G13: 0 | H13: 4 | I13: 21 | J13: Latvija | K13: 21 | L13: 5 | M13: Rīga | N13: Lucavsalas Ledus Lāči
A14: Sergejs | B14: Juhno | C14: M | D14: C | E14: 00:02,06,47 | F14: x | G14: 0 | H14: 5 | I14: 18 | J14: Latvija | K14: 18 | L14: 6 | M14: Liepāja | N14: Born2Win
A15: Aleksandrs | B15: Mihailenko | C15: M | D15: C | E15: 00:02,13,19 | F15: x | G15: 0 | H15: 6 | I15: 15 | J15: Latvija | K15: 15 | L15: 7 | M15: Rīga | N15: Jelgavas roņi ZPK
A16: Juris | B16: Dinne | C16: M | D16: C | E16: 00:02,14,12 | F16: x | G16: 0 | H16: 7 | I16: 12 | J16: Latvija | K16: 12 | L16: 8 | M16: Rīga | N16: Lucavsalas Ledus Lāči
A17: Renārs | B17: Astra | C17: M | D17: C | E17: 00:02,16,51 | F17: x | G17: 0 | H17: 8 | I17: 9 | J17: Latvija | K17: 9 | L17: 9 | M17: Rīga | N17: Lucavsalas Ledus Lāči
A18: Dainars | B18: Sungals | C18: M | D18: C | E18: 00:02,32,41 | F18: x | G18: 0 | H18: 9 | I18: 8 | J18: Latvija | K18: 8 | L18: 10 | M18: Liepāja | N18: LucavsalasLedusLāči
A19: Edgars | B19: Buļs | C19: M | D19: C | E19: 00:02;49,57 | F19: x | G19: 0 | H19: 10 | I19: 7 | J19: Latvija | K19: 7 | L19: 11 | M19: Pilsēta | N19: Lucavsalas Ledus Lāči
A20: Erkki | B20: Kasenurm | C20: M | D20: D | E20: 00:01,53,70 | H20: 1 | J20: Estonia | M20: Tallinn | N20: Adduco
A21: Artūrs | B21: Aukons | C21: M | D21: E | E21: 00:01,46,54 | F21: x | G21: 0 | H21: 1 | I21: 30 | J21: Latvija | K21: =G21+I21 -> 30 | L21: 1 | M21: Rīga | N21: LUCAVSALAS LEDUS LĀČI / LUTZAUSHOLM POLAR BEARS
A22: Jurijs | B22: Švedovs | C22: M | D22: E | E22: 00:02,08,26 | F22: x | G22: 0 | H22: 2 | I22: 27 | J22: Latvija | K22: 27 | L22: 2 | M22: Ventspils | N22: Jūras Lauvas
A23: Aleksandrs | B23: Jakovlevs | C23: M | D23: F | E23: 00:01,40,07 | F23: x | G23: 30 | H23: 1 | I23: 30 | J23: Latvija | K23: 60 | L23: 1 | M23: Jelgava | N23: Jelgavas roņi ZPK
A24: Guntars | B24: Jēkabsons | C24: M | D24: F | E24: 00:02,10,51 | F24: 2 | G24: 27 | H24: 4 | I24: 21 | J24: Latvija | K24: 48 | L24: 2 | M24: Liepāja | N24: Veloronis
A25: Garijs | B25: Prohorovs | C25: M | D25: F | E25: 00:01,51,75 | F25: x | G25: 0 | H25: 2 | I25: 27 | J25: Latvija | K25: 27 | L25: 3 | M25: Riga | N25: Latvijas roni
A26: Ingus | B26: Veips | C26: M | D26: F | E26: 00:01,54,86 | F26: x | G26: 0 | H26: 3 | I26: 24 | J26: Latvija | K26: 24 | L26: 4 | M26: Rīga | N26: Lucavsalas Ledus Lāči
A27: Jānis | B27: Kļaviņš | C27: M | D27: F | E27: 00:02,38,13 | F27: x | G27: 0 | H27: 5 | I27: 18 | J27: Latvija | K27: 18 | L27: 5 | M27: Riga | N27: Latvijas ronis
A28: Juris | B28: Andžāns | C28: M | D28: G | E28: 00:01,32,93 | F28: 1 | G28: 30 | H28: 1 | I28: 30 | J28: Latvija | K28: 60 | L28: 1 | M28: Aizpute
A29: Andis | B29: Bukonts | C29: M | D29: H | E29: 00:01,42,08 | F29: 1 | G29: 30 | H29: 1 | I29: 30 | J29: Latvija | K29: 60 | L29: 1 | M29: Valmiera | N29: OZOLNIEKU RONII
A30: Viktors | B30: Bakanovs | C30: M | D30: H | E30: 00:02,03,83 | F30: 2 | G30: 27 | H30: 2 | I30: 27 | J30: Latvija | K30: 54 | L30: 2 | M30: Carnikava | N30: Jelgavas Roņi
A31: Anatolijs | B31: Bartkevics | C31: M | D31: H | E31: 00:02,30,50 | F31: 3 | G31: 24 | H31: 3 | I31: 24 | J31: Latvija | K31: 48 | L31: 3 | M31: Riga | N31: Latvijsronis
A32: Vladimir | B32: Konstantinov | C32: M | D32: I | E32: 00:03,47,28 | F32: x | G32: 0 | H32: 1 | I32: 30 | J32: Latvija | K32: 30 | L32: 1
A33: Vasilijs | B33: Kudiķis | C33: M | D33: J1 | E33: 00:04,54,03 | F33: x | G33: 0 | H33: 1 | I33: 30 | J33: Latvija | K33: 30 | L33: 1 | M33: Ogre | N33: Ogres Roņi

Sheet 100 Male Diplomi (hidden)
A1: 100 brass/breastroke | E1: 100m brass
A2: Vīrieši/Male
A4: Vārds | B4: Uzvārds | C4: Dzimums | D4: Grupa | E4: Laiks | F4: Vieta | G4: Valsts | H4: Pilsēta | I4: Klubs
A5: Aleksandrs | B5: Jakovlevs JR | C5: M | D5: A2 | E5: 00:01,34,47 | F5: 1 | G5: Latvija | H5: Jelgava | I5: Jelgavas roņi ZPK
A6: Dmitrijs | B6: Žigunovs | C6: M | D6: B | E6: 00:01,45,54 | F6: 1 | G6: Latvija | H6: Jelgava | I6: Jelgavas roņi ZPK
A7: Mihails | B7: Petrišins | C7: M | D7: C | E7: 00:01,32,10 | F7: 1 | G7: Latvija | H7: Jelgava | I7: Jelgavas roņi
A8: Anton | B8: Bazõlev | C8: M | D8: C | E8: 00:01,42,56 | F8: 2 | G8: Estonia | H8: Tallinn | I8: Adduco moving service
A9: Oleg | B9: Arbuzov | C9: M | D9: C | E9: 00:01,53,02 | F9: 3 | G9: Russia | H9: Moscow | I9: Moroz&Co
A10: Erkki | B10: Kasenurm | C10: M | D10: D | E10: 00:01,53,70 | F10: 1 | G10: Estonia | H10: Tallinn | I10: Adduco
A11: Artūrs | B11: Aukons | C11: M | D11: E | E11: 00:01,46,54 | F11: 1 | G11: Latvija | H11: Rīga | I11: LUCAVSALAS LEDUS LĀČI / LUTZAUSHOLM POLAR BEARS
A12: Jurijs | B12: Švedovs | C12: M | D12: E | E12: 00:02,08,26 | F12: 2 | G12: Latvija | H12: Ventspils | I12: Jūras Lauvas
A13: Aleksandrs | B13: Jakovlevs | C13: M | D13: F | E13: 00:01,40,07 | F13: 1 | G13: Latvija | H13: Jelgava | I13: Jelgavas roņi ZPK
A14: Garijs | B14: Prohorovs | C14: M | D14: F | E14: 00:01,51,75 | F14: 2 | G14: Latvija | H14: Riga | I14: Latvijas roni
A15: Ingus | B15: Veips | C15: M | D15: F | E15: 00:01,54,86 | F15: 3 | G15: Latvija | H15: Rīga | I15: Lucavsalas Ledus Lāči
A16: Juris | B16: Andžāns | C16: M | D16: G | E16: 00:01,32,93 | F16: 1 | G16: Latvija | H16: Aizpute
A17: Andis | B17: Bukonts | C17: M | D17: H | E17: 00:01,42,08 | F17: 1 | G17: Latvija | H17: Valmiera | I17: OZOLNIEKU RONII
A18: Viktors | B18: Bakanovs | C18: M | D18: H | E18: 00:02,03,83 | F18: 2 | G18: Latvija | H18: Carnikava | I18: Jelgavas Roņi
A19: Anatolijs | B19: Bartkevics | C19: M | D19: H | E19: 00:02,30,50 | F19: 3 | G19: Latvija | H19: Riga | I19: Latvijsronis
A20: Vladimir | B20: Konstantinov | C20: M | D20: I | E20: 00:03,47,28 | F20: 1 | G20: Latvija
A21: Vasilijs | B21: Kudiķis | C21: M | D21: J1 | E21: 00:04,54,03 | F21: 1 | G21: Latvija | H21: Ogre | I21: Ogres Roņi

Sheet Vecums_vir (hidden)
A1: Vīrieši
E3: Grupa | F3: Skaits
E4: A1 | F4: 5 | G4: 2007 | H4: =2020-G4 -> 13 | I4: =H4*F4 -> 65 | L4: Grupa | M4: Skaits
E5: A2 | F5: 3 | G5: =(2000+2005)/2 -> 2002.5 | H5: 17.5 | I5: 52.5 | L5: A1 | M5: 5
E6: B | F6: 6 | G6: =(1990+2000)/2 -> 1995 | H6: 25 | I6: 150 | L6: A2 | M6: 3
E7: C | F7: 29 | G7: 1985 | H7: 35 | I7: 1015 | L7: B | M7: 6
E8: D | F8: 8 | G8: =(1975+1980)/2 -> 1977.5 | H8: 42.5 | I8: 340 | L8: C | M8: 29
E9: E | F9: 7 | G9: 1973.5 | H9: 46.5 | I9: 325.5 | L9: D | M9: 8
E10: F | F10: 9 | G10: 1967.5 | H10: 52.5 | I10: 472.5 | L10: E | M10: 7
E11: G | F11: 4 | G11: 1962.5 | H11: 57.5 | I11: 230 | L11: F | M11: 9
E12: H | F12: 12 | G12: 1957.5 | H12: 62.5 | I12: 750 | L12: G | M12: 4
E13: I | F13: 1 | G13: 1952.5 | H13: 67.5 | I13: 67.5 | L13: H | M13: 12
E14: J | F14: 1 | G14: 1947.5 | H14: 72.5 | I14: 72.5 | L14: I | M14: 1
E15: J1 | F15: 3 | G15: 1942.5 | H15: 77.5 | I15: 232.5 | L15: J | M15: 1
F16: =SUM(F4:F15) -> 88 | I16: =SUM(I4:I15) -> 3773 | L16: J1 | M16: 3
I18: =I16/F16 -> 42.875
A20: SIEVITES
A22: Row Labels | B22: Count of Grupa | E22: Row Labels | F22: Count of Grupa
A23: A1 | B23: 1 | E23: A1 | F23: 1 | G23: 2007 | H23: =2020-G23 -> 13 | I23: =H23*F23 -> 13
A24: A2 | B24: 1 | E24: A2 | F24: 1 | G24: =(2000+2005)/2 -> 2002.5 | H24: 17.5 | I24: 17.5
A25: B | B25: 7 | E25: B | F25: 7 | G25: =(1990+2000)/2 -> 1995 | H25: 25 | I25: 175
A26: C | B26: 6 | E26: C | F26: 6 | G26: 1985 | H26: 35 | I26: 210
A27: D | B27: 3 | E27: D | F27: 3 | G27: =(1975+1980)/2 -> 1977.5 | H27: 42.5 | I27: 127.5
A28: E | B28: 11 | E28: E | F28: 11 | G28: 1973.5 | H28: 46.5 | I28: 511.5
A29: F | B29: 6 | E29: F | F29: 6 | G29: 1967.5 | H29: 52.5 | I29: 315
A30: G | B30: 4 | E30: G | F30: 4 | G30: 1962.5 | H30: 57.5 | I30: 230
A31: H | B31: 5 | E31: H | F31: 5 | G31: 1957.5 | H31: 62.5 | I31: 312.5
A32: I | B32: 2 | E32: I | F32: 2 | G32: 1952.5 | H32: 67.5 | I32: 135
A33: J1 | B33: 2 | E33: J1 | F33: 2 | G33: 1947.5 | H33: 72.5 | I33: 145
F34: =SUM(F23:F33) -> 48 | I34: =SUM(I23:I33) -> 2192
H36: =I34/F34 -> 45.66666667
E38: Grupa | F38: Skaits
E39: A1 | F39: 5 | G39: 1 | H39: =SUM(F39:G39) -> 6 | I39: 2007 | J39: =2020-I39 -> 13 | K39: =J39*H39 -> 78
E40: A2 | F40: 3 | G40: 1 | H40: 4 | I40: =(2000+2005)/2 -> 2002.5 | J40: 17.5 | K40: 70
E41: B | F41: 6 | G41: 7 | H41: 13 | I41: =(1990+2000)/2 -> 1995 | J41: 25 | K41: 325
E42: C | F42: 29 | G42: 6 | H42: 35 | I42: 1985 | J42: 35 | K42: 1225
E43: D | F43: 8 | G43: 3 | H43: 11 | I43: =(1975+1980)/2 -> 1977.5 | J43: 42.5 | K43: 467.5
E44: E | F44: 7 | G44: 11 | H44: 18 | I44: 1973.5 | J44: 46.5 | K44: 837
E45: F | F45: 9 | G45: 6 | H45: 15 | I45: 1967.5 | J45: 52.5 | K45: 787.5
E46: G | F46: 4 | G46: 4 | H46: 8 | I46: 1962.5 | J46: 57.5 | K46: 460
E47: H | F47: 12 | G47: 5 | H47: 17 | I47: 1957.5 | J47: 62.5 | K47: 1062.5
E48: I | F48: 1 | G48: 2 | H48: 3 | I48: 1952.5 | J48: 67.5 | K48: 202.5
E49: J | F49: 1 | G49: 0 | H49: 1 | I49: 1947.5 | J49: 72.5 | K49: 72.5
E50: J1 | F50: 3 | G50: 2 | H50: 5 | I50: 1942.5 | J50: 77.5 | K50: 387.5
H51: =SUM(H39:H50) -> 136 | K51: =SUM(K39:K50) -> 5975
I54: =K51/H51 -> 43.93382353

Sheet LOTERIJA (hidden)
A1: Vārds | B1: Uzvārds | C1: Grupa
A2: Juris | B2: Andžāns | C2: G
A3: Oleg | B3: Arbuzov | C3: C
A4: Renārs | B4: Astra | C4: C
A5: Artūrs | B5: Aukons | C5: E
A6: Viktors | B6: Bakanovs | C6: H
A7: Ivars | B7: Balevičs | C7: H
A8: Māris | B8: Balodis | C8: C
A9: Anatolijs | B9: Bartkevics | C9: H
A10: Ričards | B10: Batarags | C10: E
A11: Pāvels | B11: Baukovskis | C11: B
A12: Anton | B12: Bazõlev | C12: C
A13: Nauris | B13: Bērziņš | C13: C
A14: Aleksandrs | B14: Besklubenko | C14: H
A15: Jānis | B15: Brazovskis | C15: E
A16: Andis | B16: Bukonts | C16: H
A17: Edgars | B17: Buļs | C17: C
A18: Kristaps | B18: Bumbulis | C18: B
A19: Aivars | B19: Bumbulis | C19: H
A20: Janis | B20: Buna | C20: D
A21: Sergejs | B21: Dibrivnijs | C21: H
A22: Juris | B22: Dinne | C22: C
A23: Uģis | B23: Eida | C23: C
A24: Ievgen | B24: Fieiiereizen | C24: C
A25: Roberts | B25: Figoriņš | C25: F
A26: Kārlis | B26: Grundmanis | C26: G
A27: Raitis | B27: Gultnieks | C27: G
A28: Oļegs | B28: Jagovdiks | C28: C
A29: Aleksandrs | B29: Jakovlevs | C29: F
A30: Aleksandrs | B30: Jakovlevs JR | C30: A2
A31: Guntars | B31: Jēkabsons | C31: F
A32: Sergejs | B32: Juhno | C32: C
A33: Dagnijs | B33: Kadziševskis | C33: J1
A34: Robijs | B34: Karjuss | C34: C
A35: Erkki | B35: Kasenurm | C35: D
A36: Vitālijs | B36: Kisļicins | C36: H
A37: Joerg | B37: Kitlinski | C37: E
A38: Jānis | B38: Kļaviņš | C38: F
A39: Artis | B39: Konopackis | C39: F
A40: Vladimir | B40: Konstantinov | C40: I
A41: Leo | B41: Kopics | C41: A1
A42: Vasilijs | B42: Kudiķis | C42: J1
A43: Gundars | B43: Lapše | C43: C
A44: Reno | B44: Lazdiņš | C44: D
A45: Andris | B45: Leitāns | C45: C
A46: Ziedonis | B46: Līnis | C46: H
A47: Juris | B47: Marahovskis | C47: E
A48: Artis | B48: Mierklans | C48: B
A49: Ringolds | B49: Miezitis | C49: F
A50: Harijs | B50: Miezītis | C50: A1
A51: Aleksandrs | B51: Mihailenko | C51: C
A52: Aleksandrs | B52: Mihailenko JR | C52: A1
A53: Igors | B53: Mihaļevs | C53: C
A54: Nikita | B54: Nustajevs | C54: A2
A55: Andris | B55: Paupers | C55: G
A56: Mihails | B56: Petrišins | C56: C
A57: Artem | B57: Petrov | C57: J
A58: Igor | B58: Pilshchikov | C58: H
A59: Māris | B59: Prindulis | C59: C
A60: Garijs | B60: Prohorovs | C60: F
A61: Artis | B61: Rbens | C61: D
A62: Uldis | B62: Rimicāns | C62: C
A63: Agris | B63: Samcovs | C63: D
A64: Maksims | B64: Šefers | C64: A1
A65: Rihards | B65: Sekste | C65: C
A66: Dāvids | B66: Senebiņš | C66: C
A67: Pāvels | B67: Šišlovs | C67: C
A68: Artis | B68: Šmits | C68: E
A69: Arturs | B69: Strumpe | C69: D
A70: Dainars | B70: Sungals | C70: C
A71: Jurijs | B71: Švedovs | C71: E
A72: Viesturs | B72: Tamulis | C72: C
A73: Ivars | B73: Timko | C73: D
A74: Reinis | B74: Tukišs | C74: C
A75: Uldis | B75: Ungers | C75: H
A76: Viktors | B76: Valainis | C76: J1
A77: Kaspars | B77: Vallis | C77: B
A78: Raits | B78: Valters | C78: H
A79: Marcis | B79: Varpa | C79: C
A80: Mārcis | B80: Vārpa | C80: C
A81: Ingus | B81: Veips | C81: F
A82: Janis | B82: Viņodis | C82: D
A83: Bruno | B83: Vītoliņš | C83: A2
A84: Igors | B84: Zakrepskis | C84: C
A85: Dmitrijs | B85: Žigunovs | C85: B
A86: Dmitrijs | B86: Žigunovs | C86: B
A87: Alens | B87: Zinovjevs | C87: A1
A88: Jevgenijs | B88: Zinovjevs | C88: C
A89: Māris | B89: Žunda | C89: F

Sheet Sheet3 (hidden)
A1: Vīrieši

Sheet Sheet2 (hidden)
A1: Vārds | B1: Uzvārds | C1: Dzimums | D1: Grupa | E1: Valsts | F1: Pilsēta | G1: Klubs
A2: Juris | B2: Andžāns | C2: M | D2: G | E2: Latvija | F2: Aizpute
A3: Oleg | B3: Arbuzov | C3: M | D3: C | E3: Russia | F3: Moscow | G3: Moroz&Co
A4: Renārs | B4: Astra | C4: M | D4: C | E4: Latvija | F4: Rīga | G4: Lucavsalas Ledus Lāči
A5: Artūrs | B5: Aukons | C5: M | D5: E | E5: Latvija | F5: Rīga | G5: Lucavsalas ledus lāči
A6: Viktors | B6: Bakanovs | C6: M | D6: H | E6: Latvija | F6: Carnikava | G6: Jelgavas Roņi
A7: Ivars | B7: Balevičs | C7: M | D7: H | E7: Latvija | F7: Liepāja | G7: Ventspils juras lauvas
A8: Māris | B8: Balodis | C8: M | D8: C | E8: Latvija | F8: Liepāja | G8: Jelgavas roņi
A9: Anatolijs | B9: Bartkevics | C9: M | D9: H | E9: Latvija | F9: Riga | G9: Latvijas ronis
A10: Ričards | B10: Batarags | C10: M | D10: E | E10: Latvija | F10: Saulkrasti | G10: Raganas roņi
A11: Pāvels | B11: Baukovskis | C11: M | D11: B | E11: Latvija | F11: Ventspils | G11: Venspils Jūras Lauvas
A12: Anton | B12: Bazõlev | C12: M | D12: C | E12: Estonia | F12: Tallinn | G12: Adduco moving service
A13: Nauris | B13: Bērziņš | C13: M | D13: C | E13: Latvija | F13: Rīga | G13: Lucavsalas Ledus Lāči
A14: Aleksandrs | B14: Besklubenko | C14: M | D14: H | E14: Latvija | F14: Rīga | G14: Individuāli
A15: Jānis | B15: Brazovskis | C15: M | D15: E | E15: Latvija | F15: Rīga | G15: Individuāli
A16: Andis | B16: Bukonts | C16: M | D16: H | E16: Latvija | F16: Valmiera | G16: OZOLNIEKU RONI
A17: Edgars | B17: Buļs | C17: M | D17: C | E17: Latvija | F17: Pilsēta | G17: Lucavsalas Ledus Lāči
A18: Aivars | B18: Bumbulis | C18: M | D18: H | E18: Latvija | F18: Grobiņa | G18: Individuāli
A19: Kristaps | B19: Bumbulis | C19: M | D19: B | E19: Latvija | F19: Kapsēde | G19: Individuāli
A20: Janis | B20: Buna | C20: M | D20: D | E20: Latvija | F20: Rīga | G20: Latvijas ronis
A21: Sergejs | B21: Dibrivnijs | C21: M | D21: H | E21: Latvija | F21: Riga | G21: individual
A22: Juris | B22: Dinne | C22: M | D22: C | E22: Latvija | F22: Rīga | G22: Lucavsalas Ledus Lāči
A23: Uģis | B23: Eida | C23: M | D23: C | E23: Latvija | F23: Jūrmala
A24: Ievgen | B24: Fieiiereizen | C24: M | D24: C | E24: Ukrainā | F24: Liepāja | G24: Individuāli
A25: Roberts | B25: Figoriņš | C25: M | D25: F | E25: Latvija | F25: Cīrava | G25: individuāli
A26: Kārlis | B26: Grundmanis | C26: M | D26: G | E26: Latvija | F26: Kuldīga | G26: Kuldīgas roņi
A27: Raitis | B27: Gultnieks | C27: M | D27: G | E27: Latvija | F27: Silakrogs | G27: Ogres roņi
A28: Oļegs | B28: Jagovdiks | C28: M | D28: C | E28: Latvija | F28: Jelgava | G28: Jelgavas roņi
A29: Aleksandrs | B29: Jakovlevs | C29: M | D29: F | E29: Latvija | F29: Jelgava | G29: Jelgavas roņi ZPK
A30: Aleksandrs | B30: Jakovlevs JR | C30: M | D30: A2 | E30: Latvija | F30: Jelgava | G30: Jelgavas roņi ZPK
A31: Guntars | B31: Jēkabsons | C31: M | D31: F | E31: Latvija | F31: Liepāja | G31: VeloRonis
A32: Sergejs | B32: Juhno | C32: M | D32: C | E32: Latvija | F32: Liepāja | G32: Born2Win
A33: Dagnijs | B33: Kadziševskis | C33: M | D33: J1 | E33: Latvija | F33: Liepāja | G33: VeloRonis
A34: Robijs | B34: Karjuss | C34: M | D34: C | E34: Latvija | F34: Krimulda | G34: Raganas roņi
A35: Erkki | B35: Kasenurm | C35: M | D35: D | E35: Estonia | F35: Tallinn | G35: Adduco
A36: Vitālijs | B36: Kisļicins | C36: M | D36: H | E36: Latvija | F36: Rīga | G36: J.R.
A37: Joerg | B37: Kitlinski | C37: M | D37: E | E37: Germany | F37: Fulda | G37: Fuldas only Winterswimmer
A38: Jānis | B38: Kļaviņš | C38: M | D38: F | E38: Latvija | F38: Riga | G38: Latvijas ronis
A39: Artis | B39: Konopackis | C39: M | D39: F | E39: Latvija | F39: Liepāja
A40: Vladimir | B40: Konstantinov | C40: M | D40: I | E40: Latvija
A41: Gints | B41: Kopics | C41: M | D41: E | E41: Latvija | F41: Saldus | G41: AKVA VITAMĪNS
A42: Leo | B42: Kopics | C42: M | D42: A1 | E42: Latvija | F42: Saldus | G42: AKVA VITAMĪNS
A43: Vasilijs | B43: Kudiķis | C43: M | D43: J1 | E43: Latvija | F43: Ogre | G43: Ogres Roņi
A44: Gundars | B44: Lapše | C44: M | D44: C | E44: Latvija | F44: Rīga | G44: Swim4Style
A45: Reno | B45: Lazdiņš | C45: M | D45: D | E45: Latvija | F45: Ogre | G45: Ogres Roņi
A46: Andris | B46: Leitāns | C46: M | D46: C | E46: Latvija | F46: Ozolnieki | G46: Ozolnieku Roņi
A47: Ziedonis | B47: Līnis | C47: M | D47: H | E47: Latvija | F47: Liepāja | G47: Veloronis
A48: Juris | B48: Marahovskis | C48: M | D48: E | E48: Latvija | F48: Rīga | G48: Individuāli
A49: Artis | B49: Mierklans | C49: M | D49: B | E49: Latvija | F49: Liepāja
A50: Ringolds | B50: Miezitis | C50: M | D50: F | E50: Латвия | F50: Kuldīga | G50: Kuldīgas roņi
A51: Harijs | B51: Miezītis | C51: M | D51: A1 | E51: Latvija | F51: Kuldīga | G51: Kuldīgas roņi
A52: Aleksandrs | B52: Mihailenko | C52: M | D52: C | E52: Latvija | F52: Rīga | G52: Jelgavas roņi ZPK
A53: Igors | B53: Mihaļevs | C53: M | D53: C | E53: Latvija | F53: Jēkabpils | G53: Jēkabpils Roņi
A54: Nikita | B54: Nustajevs | C54: M | D54: A2 | E54: Latvija | F54: Liepāja | G54: Liepāja KSS-Ezerkrasts
A55: Andris | B55: Paupers | C55: M | D55: G | E55: Latvija | F55: Aizpute | G55: individuāli
A56: Mihails | B56: Petrišins | C56: M | D56: C | E56: Latvija | F56: Jelgava | G56: Jelgavas roņi
A57: Artem | B57: Petrov | C57: M | D57: J | E57: Latvija | F57: Ventspils | G57: Jūras lauvas
A58: Igor | B58: Pilshchikov | C58: M | D58: H | E58: Belarus | F58: Minsk | G58: Morjy Stolicy
A59: Māris | B59: Prindulis | C59: M | D59: C | E59: Latvija | F59: Rīga | G59: Lucavsalas Ledus Lāči
A60: Garijs | B60: Prohorovs | C60: M | D60: F | E60: Latvija | F60: Riga | G60: Latvijas roni
A61: Artis | B61: Rbens | C61: M | D61: D | E61: Latvija | F61: Jēkabpils | G61: Jēkabplis roņi
A62: Uldis | B62: Rimicāns | C62: M | D62: C | E62: Latvija | F62: Rīga | G62: Lucavsalas Ledus Lāči
A63: Agris | B63: Samcovs | C63: M | D63: D | E63: Latvija | F63: Rīga | G63: NRC
A64: Maksims | B64: Šefers | C64: M | D64: A1 | E64: Latvija | F64: Jelgava | G64: Jelgavas roņi ZPK
A65: Rihards | B65: Sekste | C65: M | D65: C | E65: Latvija | F65: Rīga
A66: Dāvids | B66: Senebiņš | C66: M | D66: C | E66: Latvija | F66: Kapsēde | G66: Individuāli
A67: Pāvels | B67: Šišlovs | C67: M | D67: C | E67: Latvija | F67: Rīga | G67: Swim4Style
A68: Artis | B68: Šmits | C68: M | D68: E | E68: Latvija | F68: Rīga | G68: Lucavsalas Ledus Lāči
A69: Arturs | B69: Strumpe | C69: M | D69: D | E69: Vācija | F69: Fulda | G69: Individuāli
A70: Dainars | B70: Sungals | C70: M | D70: C | E70: Latvija | F70: Liepāja | G70: LucavsalasLedusLāči
A71: Jurijs | B71: Švedovs | C71: M | D71: E | E71: Latvija | F71: Ventspils | G71: Jūras lauvas
A72: Viesturs | B72: Tamulis | C72: M | D72: C | E72: Latvija | F72: Rīga | G72: Latvijas Ronis
A73: Ivars | B73: Timko | C73: M | D73: D | E73: Latvija | F73: Jēkabpils | G73: Jēkabpils roņi
A74: Reinis | B74: Tukišs | C74: M | D74: C | E74: Latvija | F74: Liepāja | G74: VoleRonis
A75: Uldis | B75: Ungers | C75: M | D75: H | E75: Latvija | F75: Aizpute | G75: Individuāli
A76: Viktors | B76: Valainis | C76: M | D76: J1 | E76: Latvija | F76: Jelgava | G76: Jelgavas roņi ZPK
A77: Kaspars | B77: Vallis | C77: M | D77: B | E77: Latvija | F77: Liepāja
A78: Raits | B78: Valters | C78: M | D78: H | E78: Latvija | F78: Kuldīga | G78: Kuldīgas roņi
A79: Marcis | B79: Varpa | C79: M | D79: C | E79: Latvija | F79: Rīga | G79: Lucavsalas leduslāči
A80: Mārcis | B80: Vārpa | C80: M | D80: C | E80: Latvija | F80: Rīga | G80: Lucavsalas Ledus Lāči
A81: Ingus | B81: Veips | C81: M | D81: F | E81: Latvija | F81: Rīga | G81: Lucavsalas Ledus Lāči
A82: Janis | B82: Viņodis | C82: M | D82: D | E82: Latvija | F82: Liepāja | G82: Jelgavas roņi
A83: Bruno | B83: Vītoliņš | C83: M | D83: A2 | E83: Latvija | F83: Saldus | G83: AKVA VITAMĪNS
A84: Igors | B84: Zakrepskis | C84: M | D84: C | E84: Latvija | F84: Jelgava | G84: Individuāli
A85: Dmitrijs | B85: Žigunovs | C85: M | D85: B | E85: Latvija | F85: Jelgava | G85: Jelgavas roņi ZPK
A86: Alens | B86: Zinovjevs | C86: M | D86: A1 | E86: Latvija | F86: Rāmava, Ķekavas novads; | G86: Ķengaraga Roņi
A87: Jevgenijs | B87: Zinovjevs | C87: M | D87: C | E87: Latvija | F87: Rāmava, Ķekavas novads; | G87: Ķengaraga Roņi
A88: Māris | B88: Žunda | C88: M | D88: F | E88: Latvija | F88: Saldus | G88: AKVA VITAMĪNS
